bitfinex/quotes_SOLUSD_20250626
["timestamp","ask_amount","ask_price","bid_price","bid_amount"]
[1750899822757,5.17511363,144.13,144.1,35.11954714]
[1750899822977,0.04,144.14,144.1,35.11954714]
[1750899823188,5.17527327,144.13,144.1,35.11954714]
[1750899825671,0.04,144.14,144.11,18.64964886]
[1750899825870,5.2139039,144.14,144.11,18.64964886]
[1750899826049,0.04,144.14,144.11,18.64964886]
[1750899827177,0.04,144.14,144.1,35.11941858]
[1750899827374,0.04,144.14,144.1,6.93941858]
[1750899827568,5.17451202,144.13,144.1,6.93941858]
[1750899827778,5.17451202,144.12,144.1,6.93941858]
[1750899828071,0.04,144.14,144.1,6.93941858]
[1750899828293,5.17458763,144.13,144.1,6.93941858]
[1750899828467,5.17458763,144.12,144.1,6.93941858]
[1750899828668,0.04,144.14,144.1,6.93941858]
[1750899828867,151.67527551,144.13,144.1,6.93941858]
[1750899829067,5.17527551,144.12,144.1,6.93941858]
[1750899829271,146.5,144.13,144.09,6.94010687]
[1750899829470,5.17543013,144.12,144.09,6.94010687]
[1750899829683,146.5,144.13,144.09,6.94010687]
[1750899829880,5.17543132,144.12,144.09,6.94010687]
[1750899830078,146.5,144.13,144.09,6.94010687]
[1750899830276,5.17543132,144.12,144.09,6.94010687]
[1750899830566,146.5,144.13,144.09,6.94010687]
[1750899830766,5.17562462,144.12,144.09,6.94010687]
[1750899830984,146.5,144.13,144.09,6.94010687]
[1750899831194,5.17562462,144.12,144.09,6.94010687]
[1750899831395,146.5,144.13,144.09,6.94010687]
[1750899831607,5.17586079,144.12,144.09,6.94010687]
[1750899831773,146.5,144.13,144.09,6.94010687]
[1750899831972,5.17586079,144.12,144.09,6.94010687]
[1750899832279,146.5,144.13,144.09,6.94010687]
[1750899832579,5.1760609,144.12,144.09,6.94010687]
[1750899832770,146.5,144.13,144.09,6.94010687]
[1750899832970,5.1760609,144.12,144.09,6.94010687]
[1750899833179,146.5,144.13,144.09,6.94010687]
[1750899833478,5.17630216,144.12,144.09,6.94010687]
[1750899833667,146.5,144.13,144.09,6.94010687]
[1750899833863,5.17630216,144.12,144.09,6.94010687]
[1750899834094,146.5,144.13,144.09,6.94010687]
[1750899834393,5.17613171,144.12,144.09,6.94010687]
[1750899834593,146.5,144.13,144.09,6.94010687]
[1750899834805,5.17633251,144.12,144.09,6.94010687]
[1750899834973,146.5,144.13,144.09,6.94010687]
[1750899835275,5.17633251,144.12,144.09,6.94010687]
[1750899835475,146.5,144.13,144.09,6.94010687]
[1750899835698,5.17649512,144.12,144.09,6.94010687]
[1750899835905,146.5,144.13,144.09,6.94010687]
[1750899836191,5.17649601,144.12,144.09,6.94010687]
[1750899836397,146.5,144.13,144.09,6.94010687]
[1750899836578,146.5,144.13,144.1,18.64964886]
[1750899837764,146.5,144.13,144.11,6.9391437]
[1750899843282,146.5,144.13,144.12,18.64964886]
[1750899843488,0.04,144.14,144.12,18.64964886]
[1750899844090,0.04,144.14,144.12,20.31144886]
[1750899845022,0.04,144.14,144.13,6.9381808]
[1750899850391,0.04,144.14,144.11,64.17750813]
[1750899850392,0.04,144.14,144.12,6.93862002]
[1750899850719,5.17578956,144.13,144.1,46.82964886]
[1750899850889,5.17578956,144.12,144.1,46.82964886]
[1750899851089,26.04,144.14,144.1,46.82964886]
[1750899851286,5.17646537,144.13,144.1,46.82964886]
[1750899851489,5.17646537,144.12,144.1,28.18]
[1750899851720,26.04,144.14,144.09,6.94010687]
[1750899851912,5.17678586,144.13,144.09,6.94010687]
[1750899852219,5.17678586,144.12,144.09,6.94010687]
[1750899852416,5.17678586,144.11,144.09,6.94010687]
[1750899852618,26.04,144.14,144.09,6.94010687]
[1750899852803,5.17763755,144.13,144.08,25.59023742]
[1750899853103,5.17763755,144.12,144.08,25.59023742]
[1750899853414,5.17763755,144.11,144.08,25.59023742]
[1750899853617,26.04,144.14,144.08,25.59023742]
[1750899853919,5.17786334,144.13,144.08,25.59023742]
[1750899854119,5.17786334,144.12,144.08,25.59023742]
[1750899854416,5.17786334,144.11,144.08,25.59023742]
[1750899854620,26.04,144.14,144.08,25.59023742]
[1750899854811,5.17808551,144.13,144.08,25.59023742]
[1750899855003,5.17808551,144.12,144.08,25.59023742]
[1750899855301,5.17808551,144.11,144.08,25.59023742]
[1750899855502,26.04,144.14,144.08,25.59023742]
[1750899855710,5.17831525,144.13,144.08,25.59023742]
[1750899855912,5.17831525,144.12,144.08,25.59023742]
[1750899856087,5.17831525,144.11,144.08,25.59023742]
[1750899856291,26.04,144.14,144.08,25.59023742]
[1750899856491,5.1783397,144.13,144.08,25.59023742]
[1750899856698,5.1783397,144.12,144.08,25.59023742]
[1750899856915,5.1783397,144.11,144.08,25.59023742]
[1750899857117,26.04,144.14,144.08,25.59023742]
[1750899857317,151.67872003,144.13,144.08,25.59023742]
[1750899857492,5.17872003,144.12,144.08,25.59023742]
[1750899857691,5.17872003,144.11,144.08,25.59023742]
[1750899857915,146.5,144.13,144.08,25.59023742]
[1750899858126,5.17884995,144.12,144.08,25.59023742]
[1750899858329,5.17884995,144.11,144.08,25.59023742]
[1750899858623,146.5,144.13,144.08,25.59023742]
[1750899858918,5.1790954,144.12,144.08,25.59023742]
[1750899859118,5.1790954,144.11,144.08,25.59023742]
[1750899859314,146.5,144.13,144.08,25.59023742]
[1750899859511,5.17923442,144.12,144.08,25.59023742]
[1750899859710,5.17923442,144.11,144.08,25.59023742]
[1750899859918,146.5,144.13,144.08,25.59023742]
[1750899860123,5.17934763,144.12,144.08,6.94058856]
[1750899860321,5.17934763,144.11,144.08,6.94058856]
[1750899860512,5.17934763,144.1,144.08,6.94058856]
[1750899860714,146.5,144.13,144.08,6.94058856]
[1750899861022,5.17971589,144.12,144.08,6.94058856]
[1750899861333,5.17971589,144.11,144.08,6.94058856]
[1750899861515,5.17971589,144.1,144.08,6.94058856]
[1750899861716,146.5,144.13,144.08,6.94058856]
[1750899861923,5.17982742,144.12,144.08,6.94058856]
[1750899862129,5.17982742,144.11,144.08,18.64964886]
[1750899862330,146.5,144.13,144.08,18.64964886]
[1750899862331,5.17982742,144.1,144.08,18.64964886]
[1750899862511,146.5,144.13,144.08,18.64964886]
[1750899862704,5.17984436,144.12,144.08,18.64964886]
[1750899862913,5.17984436,144.11,144.08,18.64964886]
[1750899863231,146.5,144.13,144.08,18.64964886]
[1750899863435,5.17969577,144.12,144.08,18.64964886]
[1750899863635,5.17969577,144.11,144.08,18.64964886]
[1750899863927,146.5,144.13,144.08,18.64964886]
[1750899864130,5.17977277,144.12,144.08,18.64964886]
[1750899864330,5.17977277,144.11,144.08,6.94016175]
[1750899864530,5.17977277,144.1,144.08,25.58981061]
[1750899864830,146.5,144.13,144.08,25.58981061]
[1750899865034,5.1801084,144.12,144.08,25.58981061]
[1750899865332,5.1801084,144.11,144.08,25.58981061]
[1750899865518,5.1801084,144.1,144.08,25.58981061]
[1750899865720,146.5,144.13,144.08,25.58981061]
[1750899865931,5.1797286,144.12,144.08,25.58981061]
[1750899866134,5.1797286,144.11,144.08,25.58981061]
[1750899866332,5.1797286,144.1,144.08,25.58981061]
[1750899866520,146.5,144.13,144.08,25.58981061]
[1750899866838,5.17969986,144.12,144.08,25.58981061]
[1750899867128,5.17969986,144.11,144.08,25.58981061]
[1750899867334,5.17969986,144.1,144.08,25.58981061]
[1750899867508,146.5,144.13,144.08,25.58981061]
[1750899867705,5.17937286,144.12,144.08,25.58981061]
[1750899867910,5.17937286,144.11,144.08,25.58981061]
[1750899868106,5.17937286,144.1,144.08,25.58981061]
[1750899868310,146.5,144.13,144.08,25.58981061]
[1750899868610,5.17910952,144.12,144.08,25.58981061]
[1750899868810,5.17910952,144.11,144.08,25.58981061]
[1750899869006,5.17910952,144.1,144.08,25.58981061]
[1750899869235,146.5,144.13,144.08,25.58981061]
[1750899869440,5.17880195,144.12,144.09,18.64964886]
[1750899869621,5.17880195,144.11,144.09,18.64964886]
[1750899869821,146.5,144.13,144.09,18.64964886]
[1750899870035,5.17853655,144.12,144.09,18.64964886]
[1750899870223,5.17853655,144.11,144.09,18.64964886]
[1750899870422,146.5,144.13,144.09,18.64964886]
[1750899870634,5.17838877,144.12,144.09,18.64964886]
[1750899870885,5.17838877,144.11,144.09,18.64964886]
[1750899871013,146.5,144.13,144.09,18.64964886]
[1750899871328,5.17838877,144.12,144.09,18.64964886]
[1750899871532,5.17838877,144.11,144.09,25.58956996]
[1750899871837,146.5,144.13,144.09,25.58956996]
[1750899872137,5.17831733,144.12,144.09,25.58956996]
[1750899872840,146.5,144.13,144.09,25.58956996]
[1750899873040,5.17812482,144.11,144.09,25.58956996]
[1750899873837,5.17812482,144.1,144.09,25.58956996]
[1750899875240,5.17812482,144.12,144.09,25.58956996]
[1750899875422,5.17812482,144.11,144.09,25.58956996]
[1750899875623,5.17812482,144.1,144.09,25.58956996]
[1750899875824,5.17812482,144.12,144.09,25.58956996]
[1750899876121,5.17812482,144.11,144.09,25.58956996]
[1750899876321,5.17812482,144.1,144.09,25.58956996]
[1750899876527,5.17812482,144.12,144.09,25.58956996]
[1750899876738,5.17812482,144.11,144.09,25.58956996]
[1750899876922,5.17812482,144.1,144.09,25.58956996]
[1750899877238,5.17812482,144.12,144.09,25.58956996]
[1750899877440,5.17812482,144.11,144.09,25.58956996]
[1750899877740,146.5,144.13,144.09,25.58956996]
[1750899877936,5.17728083,144.12,144.09,25.58956996]
[1750899878140,5.17728083,144.11,144.09,25.58956996]
[1750899878357,146.5,144.13,144.09,25.58956996]
[1750899878546,5.1770114,144.12,144.09,25.58956996]
[1750899878716,5.1770114,144.11,144.09,25.58956996]
[1750899878916,146.5,144.13,144.09,25.58956996]
[1750899879241,5.17716544,144.12,144.09,25.58956996]
[1750899879534,5.17716544,144.11,144.09,25.58956996]
[1750899879740,146.5,144.13,144.09,25.58956996]
[1750899879942,5.1769758,144.12,144.09,25.58956996]
[1750899880122,146.5,144.13,144.09,25.58956996]
[1750899880316,5.176457,144.12,144.09,25.58956996]
[1750899880516,146.5,144.13,144.09,25.58956996]
[1750899880718,5.17672969,144.12,144.09,25.58956996]
[1750899880940,146.5,144.13,144.09,25.58956996]
[1750899881142,5.17673087,144.12,144.09,25.58956996]
[1750899881645,146.5,144.13,144.1,28.18]
[1750899881826,5.17650507,144.12,144.1,28.18]
[1750899882027,146.5,144.13,144.1,28.18]
[1750899882234,5.17650507,144.12,144.1,28.18]
[1750899882651,146.5,144.13,144.1,28.18]
[1750899882821,5.17659934,144.12,144.1,28.18]
[1750899883028,146.5,144.13,144.1,28.18]
[1750899883238,5.17659934,144.12,144.1,35.11954624]
[1750899883528,146.5,144.13,144.1,35.11954624]
[1750899883748,5.17665451,144.12,144.1,35.11954624]
[1750899883935,146.5,144.13,144.1,35.11954624]
[1750899884135,5.17665451,144.12,144.1,35.11954624]
[1750899884443,146.5,144.13,144.1,28.18]
[1750899884651,5.17671176,144.12,144.1,28.18]
[1750899884849,146.5,144.13,144.09,25.58961234]
[1750899885046,5.17671294,144.12,144.09,25.58961234]
[1750899885353,146.5,144.13,144.09,25.58961234]
[1750899885536,5.17671294,144.12,144.09,25.58961234]
[1750899885737,146.5,144.13,144.09,25.58961234]
[1750899886035,5.17677402,144.12,144.09,25.58961234]
[1750899886231,146.5,144.13,144.09,25.58961234]
[1750899886445,5.17677521,144.12,144.09,25.58961234]
[1750899886643,146.5,144.13,144.09,25.58961234]
[1750899886950,5.17688631,144.12,144.09,25.58961234]
[1750899887136,146.5,144.13,144.09,25.58961234]
[1750899887326,5.17688631,144.12,144.09,25.58961234]
[1750899887526,146.5,144.13,144.09,25.58961234]
[1750899887825,5.17700527,144.12,144.09,25.58961234]
[1750899888027,146.5,144.13,144.09,25.58961234]
[1750899888235,5.17700409,144.12,144.09,25.58961234]
[1750899888451,146.5,144.13,144.09,25.58961234]
[1750899888650,5.17738519,144.12,144.09,25.58961234]
[1750899888851,146.5,144.13,144.09,25.58961234]
[1750899889057,5.17738637,144.12,144.09,25.58961234]
[1750899889241,146.5,144.13,144.09,25.58961234]
[1750899889440,5.17738519,144.12,144.09,25.58961234]
[1750899889754,146.5,144.13,144.09,25.58961234]
[1750899889948,5.17877502,144.12,144.09,25.58961234]
[1750899890136,146.5,144.13,144.09,25.58961234]
[1750899890325,5.17877383,144.12,144.09,25.58961234]
[1750899890527,146.5,144.13,144.09,25.58961234]
[1750899890722,5.18034954,144.12,144.09,25.58961234]
[1750899890951,146.5,144.13,144.09,25.58961234]
[1750899892455,5.183909,144.12,144.09,25.58961234]
[1750899892658,146.5,144.13,144.09,25.58961234]
[1750899892859,5.18389018,144.12,144.09,25.58961234]
[1750899893037,146.5,144.13,144.09,25.58961234]
[1750899893237,5.18389136,144.12,144.09,25.58961234]
[1750899893452,146.5,144.13,144.09,25.58961234]
[1750899893647,5.18641211,144.12,144.09,25.58961234]
[1750899893855,146.5,144.13,144.09,25.58961234]
[1750899894047,5.18641211,144.12,144.09,25.58961234]
[1750899894248,146.5,144.13,144.09,42.93987953]
[1750899894761,5.18917441,144.12,144.09,42.93987953]
[1750899894958,146.5,144.13,144.09,42.93987953]
[1750899895164,5.18937091,144.12,144.09,42.93987953]
[1750899895460,5.19059581,144.11,144.09,42.93987953]
[1750899895765,146.5,144.13,144.09,42.93987953]
[1750899896063,5.1903704,144.12,144.09,42.93987953]
[1750899896245,5.19068886,144.11,144.09,42.93987953]
[1750899896450,146.5,144.13,144.09,42.93987953]
[1750899896656,5.1907216,144.12,144.09,42.93987953]
[1750899896950,5.1907216,144.11,144.09,42.93987953]
[1750899897134,146.5,144.13,144.09,42.93987953]
[1750899897334,5.19072398,144.12,144.09,42.93987953]
[1750899897530,5.19072398,144.11,144.09,42.93987953]
[1750899897761,146.5,144.13,144.09,42.93987953]
[1750899897947,5.19065704,144.12,144.11,25.58879256]
[1750899898264,5.19065704,144.12,144.1,35.09955045]
[1750899898464,5.19065704,144.11,144.1,35.09955045]
[1750899898640,5.19065704,144.11,144.1,6.93955045]
[1750899899369,5.19065704,144.11,144.09,6.94010687]
[1750899899659,146.5,144.13,144.09,6.94010687]
[1750899899858,26.0,144.09,144.03,0.02]
[1750899900058,37.6811554,144.08,144.03,0.02]
[1750899900240,5.19053536,144.07,144.03,18.66964886]
[1750899900442,5.19053536,144.06,144.03,18.66964886]
[1750899900637,5.19053536,144.05,144.03,18.66964886]
[1750899900891,32.49062004,144.08,144.03,18.66964886]
[1750899901060,5.18941505,144.07,144.03,18.66964886]
[1750899901247,5.18941505,144.06,144.03,18.66964886]
[1750899901568,5.18941505,144.05,144.03,18.66964886]
[1750899901761,26.0,144.08,144.03,25.61260506]
[1750899901963,5.18674108,144.07,144.03,25.61260506]
[1750899902154,5.18674108,144.06,144.03,25.61260506]
[1750899902343,5.18674108,144.05,144.03,25.61260506]
[1750899902543,26.0,144.08,144.03,25.61260506]
[1750899902846,5.18453103,144.07,144.03,25.61260506]
[1750899903186,5.18453103,144.06,144.03,25.61260506]
[1750899903479,5.18453103,144.05,144.03,25.61260506]
[1750899903658,26.0,144.08,144.03,25.61260506]
[1750899903861,5.18263544,144.07,144.03,25.61260506]
[1750899904052,5.18263544,144.06,144.03,25.61260506]
[1750899904254,5.18263544,144.05,144.03,25.61260506]
[1750899904455,5.18123294,144.07,144.03,25.61260506]
[1750899904653,5.18123294,144.06,144.03,25.61260506]
[1750899904970,26.0,144.08,144.03,25.61260506]
[1750899905186,5.18098173,144.07,144.03,25.61260506]
[1750899905379,5.18098173,144.06,144.03,25.61260506]
[1750899905580,26.0,144.06,144.03,25.61260506]
[1750899906566,31.17815512,144.05,144.03,0.02]
[1750899906767,5.17815512,144.04,144.03,0.02]
[1750899906947,26.0,144.02,144.01,0.02]
[1750899907146,31.17815512,144.02,144.01,0.02]
[1750899907350,5.17815512,144.03,144.01,6.96396222]
[1750899907657,5.1757227,144.03,144.01,6.96396222]
[1750899908402,146.5,144.04,144.01,0.02]
[1750899909578,146.5,144.04,144.01,6.96396222]
[1750899910072,26.0,144.05,144.01,6.96396222]
[1750899910581,11.15009111,144.07,144.01,6.96396222]
[1750899910755,11.15009111,144.07,144.01,52.58386778]
[1750899911789,11.15009111,144.07,144.03,6.94299798]
[1750899912365,5.17009111,144.07,144.03,6.94299798]
[1750899912809,5.17009111,144.07,144.03,24.30049294]
[1750899912964,172.5,144.08,144.03,24.30049294]
[1750899913174,146.5,144.07,144.03,24.30049294]
[1750899914105,146.5,144.07,144.03,17.35749496]
[1750899927704,146.5,144.07,144.02,6.94348007]
[1750899929407,146.5,144.06,144.02,6.94348007]
[1750899930483,146.5,144.06,144.03,18.64964886]
[1750899933206,146.5,144.06,144.04,6.94251596]
[1750899941630,5.18371972,144.05,144.02,6.94348007]
[1750899941805,5.18399546,144.04,144.02,6.94348007]
[1750899942125,146.5,144.06,144.02,6.94348007]
[1750899942422,5.18399606,144.05,144.02,6.94348007]
[1750899942604,5.18399606,144.04,144.02,6.94348007]
[1750899942806,146.5,144.06,144.02,6.94348007]
[1750899943015,5.18647148,144.05,144.02,6.94348007]
[1750899943221,146.5,144.06,144.02,6.94348007]
[1750899943403,5.18623449,144.05,144.02,6.94348007]
[1750899943604,146.5,144.06,144.02,6.94348007]
[1750899943605,5.18623449,144.04,144.02,18.64964886]
[1750899943805,146.5,144.06,144.02,18.64964886]
[1750899943999,5.18965609,144.05,144.02,18.64964886]
[1750899944303,5.18965609,144.04,144.02,18.64964886]
[1750899944490,146.5,144.06,144.02,18.64964886]
[1750899944692,5.19290661,144.05,144.03,6.94299798]
[1750899944894,5.19290661,144.04,144.03,6.94299798]
[1750899945952,5.19290661,144.04,144.01,24.32353771]
[1750899946099,5.19290661,144.03,144.01,24.32353771]
[1750899946420,152.99062004,144.06,144.01,6.96396222]
[1750899946726,5.19387289,144.05,144.01,6.96396222]
[1750899947015,5.19387289,144.04,144.01,6.96396222]
[1750899947204,5.19387289,144.03,144.01,6.96396222]
[1750899947406,146.5,144.06,144.01,6.96396222]
[1750899947618,5.1939008,144.05,144.01,6.96396222]
[1750899947819,5.1939008,144.04,144.01,6.96396222]
[1750899948021,5.1939008,144.03,144.01,6.96396222]
[1750899948319,152.99062004,144.06,144.01,6.96396222]
[1750899948520,5.19298517,144.05,144.01,6.96396222]
[1750899948723,5.19298517,144.04,144.01,6.96396222]
[1750899949022,5.19298517,144.03,144.01,6.96396222]
[1750899949198,152.99062004,144.06,144.01,6.96396222]
[1750899949396,5.1929933,144.05,144.01,6.96396222]
[1750899949702,5.1929933,144.04,144.01,6.96396222]
[1750899949905,5.1929933,144.03,144.01,6.96396222]
[1750899950106,152.99062004,144.06,144.01,6.96396222]
[1750899950431,5.19302704,144.05,144.01,6.96396222]
[1750899950606,26.0,144.02,144.01,0.02]
[1750899950931,31.19302704,144.02,144.01,0.02]
[1750899952000,31.19104429,144.02,144.01,0.02]
[1750899954322,37.67984965,144.02,144.01,0.02]
[1750899954502,31.19104429,144.02,144.01,0.02]
[1750899957840,31.33320586,144.02,144.01,0.02]
[1750899958013,37.33320586,144.02,144.01,0.02]
[1750899958329,48.68244727,144.02,144.01,0.02]
[1750899958831,43.82201122,144.02,144.01,0.02]
[1750899959332,48.96677041,144.02,144.01,0.02]
[1750899959510,42.47796505,144.02,144.01,0.02]
[1750899960435,37.33320586,144.02,144.01,0.02]
[1750899960738,11.19104429,144.02,144.01,0.02]
[1750899961226,11.33320586,144.02,144.01,0.02]
[1750899967621,11.33320586,144.02,144.0,0.02]
[1750899967927,31.19104429,144.01,144.0,0.02]
[1750899976844,0.14216157,144.04,144.0,0.02]
[1750899977027,26.0,144.01,144.0,0.02]
[1750899977334,5.16776155,144.03,144.0,0.02]
[1750899977534,26.0,144.01,144.0,0.02]
[1750899978120,31.16776155,144.01,144.0,0.02]
[1750899978335,26.14216157,144.01,144.0,0.02]
[1750899978520,36.45501981,144.01,144.0,0.02]
[1750899978721,42.94382517,144.01,144.0,0.02]
[1750899981823,37.65656691,144.01,144.0,0.02]
[1750899982139,11.14776155,144.01,144.0,0.02]
[1750899982336,5.98,144.01,144.0,0.02]
[1750899982522,11.14776155,144.01,144.0,0.02]
[1750899982726,5.98,144.01,144.0,0.02]
[1750899982923,11.14776155,144.01,144.0,0.02]
[1750899983124,5.98,144.01,144.0,0.02]
[1750899983523,11.14776155,144.01,144.0,0.02]
[1750899983723,37.14776155,144.01,144.0,0.02]
[1750899983942,11.14776155,144.01,144.0,0.02]
[1750899984348,37.14776155,144.01,144.0,0.02]
[1750899984649,11.14776155,144.01,144.0,0.02]
[1750899987450,37.14776155,144.01,144.0,0.02]
[1750899987838,31.98,144.01,144.0,0.02]
[1750899988033,11.14776155,144.01,144.0,0.02]
[1750899988245,5.98,144.01,144.0,0.02]
[1750899988824,5.16776155,144.03,144.0,0.02]
[1750899989353,5.16776155,144.05,144.0,0.02]
[1750899989652,5.17964698,144.04,144.0,0.02]
[1750899989860,5.17964698,144.03,144.0,0.02]
[1750899990031,26.0,144.05,144.0,0.02]
[1750899990353,151.67964698,144.04,144.0,0.02]
[1750899990534,5.17964698,144.03,144.0,0.02]
[1750899990733,146.5,144.04,144.0,0.02]
[1750899990972,5.18086551,144.03,144.0,0.02]
[1750899991541,146.5,144.04,144.0,0.02]
[1750899991740,5.18065919,144.03,144.0,0.02]
[1750899991942,146.5,144.04,144.0,0.02]
[1750899992246,5.18066151,144.03,144.0,0.02]
[1750899992443,146.5,144.04,144.02,1.628]
[1750899992651,146.5,144.04,144.03,18.64964886]
[1750899992861,146.54,144.07,144.03,18.64964886]
[1750899994561,5.17704707,144.06,144.04,6.94251596]
[1750899995557,146.54,144.07,144.04,6.94251596]
[1750899996439,146.54,144.07,144.05,18.64964886]
[1750899996748,0.04,144.07,144.06,8.2027]
[1750899997849,0.04,144.07,144.06,15.14425213]
[1750899998360,0.04,144.07,144.06,33.79390099]
[1750899999251,0.04,144.07,144.06,8.58575213]
[1750899999576,0.04,144.07,144.06,1.6442]
[1750899999863,0.04,144.07,144.03,13.29072025]
[1750900000164,0.04,144.07,144.03,31.94036911]
[1750900000659,0.04,144.07,144.02,36.76565868]
[1750900002053,0.04,144.07,144.02,8.52565868]
[1750900003368,146.5,144.06,144.02,8.52565868]
[1750900006767,146.5,144.06,144.03,18.64964886]
[1750900007474,146.5,144.06,144.04,6.94251596]
[1750900008556,0.04,144.07,144.05,18.64964886]
[1750900008958,0.04,144.07,144.06,25.22334886]
[1750900009271,0.04,144.07,144.06,26.99881043]
[1750900009445,0.04,144.07,144.06,33.94036256]
[1750900009650,0.04,144.1,144.06,33.94036256]
[1750900009651,0.04,144.1,144.07,44.64964886]
[1750900009867,0.04,144.1,144.09,44.933972]
[1750900010068,0.04,144.1,144.09,45.07613357]
[1750900011581,0.04,144.1,144.09,52.01624044]
[1750900015885,0.04,144.1,144.09,25.58975573]
[1750900022677,0.04,144.1,144.04,26.14216157]
[1750900022678,0.04,144.1,144.03,23.37651848]
[1750900022879,0.04,144.1,144.04,28.52432314]
[1750900023185,0.04,144.1,144.05,18.64964886]
[1750900023388,0.04,144.1,144.07,18.64964886]
[1750900024694,0.04,144.1,144.07,25.59047624]
[1750900026483,0.04,144.1,144.09,18.64964886]
[1750900026661,0.04,144.1,144.09,18.933972]
[1750900027983,0.04,144.1,144.07,6.94082738]
[1750900028292,0.04,144.1,144.08,18.64964886]
[1750900028504,0.04,144.1,144.08,25.59010911]
[1750900030580,0.04,144.1,144.07,35.20091925]
[1750900031783,0.04,144.1,144.07,28.26]
[1750900032155,0.04,144.1,144.07,35.20092294]
[1750900036263,5.20074572,144.1,144.07,35.20092294]
[1750900040280,0.04,144.1,144.07,35.20092294]
[1750900040477,0.04,144.1,144.08,18.64964886]
[1750900043275,0.04,144.1,144.08,25.59023644]
[1750900044370,0.04,144.1,144.08,18.64964886]
[1750900045201,146.54,144.1,144.06,6.94137215]
[1750900045492,146.54,144.1,144.05,53.8315935]
[1750900046295,5.17235609,144.09,144.05,53.8315935]
[1750900049300,146.54,144.1,144.05,53.8315935]
[1750900049486,5.17533342,144.09,144.05,53.8315935]
[1750900049682,146.54,144.1,144.05,53.8315935]
[1750900049889,5.17533223,144.09,144.05,53.8315935]
[1750900050089,146.54,144.1,144.05,53.8315935]
[1750900050285,5.17522175,144.09,144.05,53.8315935]
[1750900050602,5.17648248,144.09,144.05,53.8315935]
[1750900051285,146.54,144.1,144.05,53.8315935]
[1750900051483,5.17689569,144.09,144.05,53.8315935]
[1750900051689,146.54,144.1,144.05,53.8315935]
[1750900051893,5.17689577,144.09,144.05,53.8315935]
[1750900052085,146.54,144.1,144.05,53.8315935]
[1750900052285,5.17680375,144.09,144.05,53.8315935]
[1750900052586,146.54,144.1,144.05,53.8315935]
[1750900052781,5.1759049,144.09,144.05,53.8315935]
[1750900053104,146.54,144.1,144.05,53.8315935]
[1750900053398,5.17592222,144.09,144.05,18.64964886]
[1750900053611,5.17592222,144.08,144.05,25.59165882]
[1750900053783,5.17592222,144.07,144.05,25.59165882]
[1750900054113,148.1703,144.1,144.05,25.59165882]
[1750900054287,151.67566626,144.09,144.05,25.59165882]
[1750900054484,5.17566626,144.08,144.05,25.59165882]
[1750900054781,5.17566626,144.07,144.05,25.59165882]
[1750900054981,146.5,144.09,144.05,25.59165882]
[1750900055194,5.17552009,144.08,144.05,25.59165882]
[1750900055390,5.17552009,144.07,144.05,25.59165882]
[1750900055589,146.5,144.09,144.05,25.59165882]
[1750900055793,5.17581044,144.08,144.05,25.59165882]
[1750900055995,5.17581044,144.07,144.05,25.59165882]
[1750900056197,146.5,144.09,144.05,25.59165882]
[1750900056407,5.17637004,144.08,144.05,25.59165882]
[1750900056602,5.17637004,144.07,144.05,25.59165882]
[1750900056914,146.5,144.09,144.04,28.22]
[1750900056915,146.5,144.09,144.04,35.16238891]
[1750900057096,5.17636853,144.08,144.04,6.94238891]
[1750900057305,5.17636853,144.07,144.04,6.94238891]
[1750900057620,5.17636853,144.06,144.04,6.94238891]
[1750900057918,146.5,144.09,144.04,6.94238891]
[1750900058216,5.17673304,144.08,144.04,6.94238891]
[1750900058422,5.17673304,144.07,144.04,6.94238891]
[1750900058590,5.17673304,144.06,144.04,6.94238891]
[1750900058789,146.5,144.09,144.04,6.94238891]
[1750900059107,5.17899556,144.08,144.04,6.94238891]
[1750900059314,5.17899556,144.07,144.04,6.94238891]
[1750900059604,5.17899556,144.06,144.04,6.94238891]
[1750900059908,146.5,144.09,144.04,6.94238891]
[1750900060107,5.18012838,144.08,144.04,6.94238891]
[1750900060282,5.18012838,144.07,144.04,6.94238891]
[1750900060481,5.18012838,144.06,144.04,6.94238891]
[1750900060679,146.5,144.09,144.04,6.94238891]
[1750900060906,5.18396094,144.08,144.04,6.94238891]
[1750900061109,146.5,144.09,144.04,6.94238891]